bitfinex/quotes_SOLUSD_20260211
["timestamp","ask_amount","ask_price","bid_price","bid_amount"]
[1770832800698,1.33160367,79.137,79.101,1.34784196]
[1770832800920,6.5928339,79.145,79.121,1.34784196]
[1770832801093,50.51024577,79.192,79.131,1.34784196]
[1770832801094,1.33160367,79.163,79.131,1.34784196]
[1770832801400,1.33160367,79.159,79.131,1.34784196]
[1770832801781,1.33160367,79.159,79.122,1.34784196]
[1770832801984,1.33160367,79.149,79.122,1.34784196]
[1770832802382,1.33160367,79.156,79.122,1.34784196]
[1770832802687,12.63344071,79.155,79.124,1.34784196]
[1770832803000,1.33160367,79.154,79.124,1.34784196]
[1770832803581,1.33160367,79.154,79.117,1.34784196]
[1770832803790,1.33160367,79.129,79.084,1.34784196]
[1770832804005,4.91706481,79.11,79.084,1.34784196]
[1770832804386,1.33160367,79.127,79.091,1.34784196]
[1770832804775,12.63807092,79.126,79.093,1.34784196]
[1770832804976,14.50124035,79.14,79.101,1.34784196]
[1770832805801,1.33160367,79.139,79.101,1.34784196]
[1770832806005,12.63638634,79.137,79.101,1.34784196]
[1770832806211,13.96799001,79.137,79.101,1.34784196]
[1770832807307,44.08,79.144,79.103,1.34784196]
[1770832807493,44.08,79.144,79.102,12.64190538]
[1770832807494,12.63376399,79.153,79.121,1.34784196]
[1770832808107,12.63376399,79.153,79.104,51.22]
[1770832808108,44.08,79.166,79.131,1.34784196]
[1770832808308,13.96311482,79.168,79.131,1.34784196]
[1770832808482,1.33160367,79.167,79.131,1.34784196]
[1770832809493,1.33160367,79.172,79.141,1.34784196]
[1770832809692,1.33160367,79.169,79.141,1.34784196]
[1770832809892,1.33160367,79.169,79.133,1.34784196]
[1770832810099,1.33160367,79.159,79.133,1.34784196]
[1770832810489,14.50124035,79.17,79.133,1.34784196]
[1770832810801,1.33160367,79.169,79.133,1.34784196]
[1770832811509,13.16963668,79.15,79.127,13.98566537]
[1770832812015,12.63296192,79.158,79.131,1.34784196]
[1770832812016,1.33160367,79.157,79.131,1.34784196]
[1770832812810,12.63296192,79.158,79.117,51.22]
[1770832812811,1.33160367,79.139,79.117,51.22]
[1770832813130,1.33160367,79.139,79.08,0.1]
[1770832813131,1.33160367,79.129,79.099,1.34784196]
[1770832813300,13.16963668,79.11,79.089,1.34784196]
[1770832814305,1.33160367,79.115,79.091,1.34784196]
[1770832814688,12.63998786,79.114,79.091,1.34784196]
[1770832815929,12.63998786,79.114,79.08,13.26963668]
[1770832815930,14.50124035,79.1,79.08,0.1]
[1770832816091,1.33160367,79.108,79.082,1.34784196]
[1770832816412,13.16963668,79.11,79.082,1.34784196]
[1770832817511,1.33160367,79.136,79.091,1.34784196]
[1770832817710,13.16963668,79.13,79.091,1.34784196]
[1770832817917,12.63759178,79.129,79.093,1.34784196]
[1770832818291,1.33160367,79.128,79.093,1.34784196]
[1770832819293,12.63759178,79.129,79.093,1.34784196]
[1770832821303,1.22561553,79.119,79.094,12.64318405]
[1770832821497,1.22561553,79.119,79.095,1.34033811]
[1770832821703,12.63759178,79.129,79.095,1.34033811]
[1770832821906,1.22561553,79.128,79.095,1.34033811]
[1770832822214,13.16963668,79.12,79.095,1.34033811]
[1770832823316,13.86373312,79.126,79.097,1.34033811]
[1770832823496,1.22561553,79.126,79.097,1.34033811]
[1770832824819,13.16963668,79.12,79.097,1.34033811]
[1770832826317,1.22561553,79.126,79.099,1.34033811]
[1770832826318,12.63823064,79.125,79.099,1.34033811]
[1770832827505,1.24141318,79.127,79.099,1.34033811]
[1770832828319,4.91708499,79.12,79.099,1.34033811]
[1770832828702,1.24141318,79.127,79.1,12.64222503]
[1770832828898,1.24141318,79.127,79.101,1.23984555]
[1770832829103,1.24141318,79.119,79.094,12.64318405]
[1770832829516,1.24141318,79.119,79.094,1.23984555]
[1770832830506,1.24141318,79.126,79.094,1.23984555]
[1770832830708,12.63759178,79.129,79.094,1.23984555]
[1770832831204,1.24141318,79.133,79.094,1.23984555]
[1770832831622,4.91685114,79.13,79.096,1.23984555]
[1770832831928,1.24141318,79.129,79.096,1.23984555]
[1770832834224,1.24141318,79.129,79.086,51.38]
[1770832834225,1.24141318,79.128,79.098,1.23984555]
[1770832836431,2.47215037,101.77,79.1,1.23984555]
[1770832836432,12.63701303,79.133,79.1,1.23984555]
[1770832837729,12.63701303,79.133,79.102,1.23984555]
[1770832838444,1.24141318,79.139,79.102,1.23984555]
[1770832839114,1.24141318,79.119,79.098,12.64250514]
[1770832839306,1.24141318,79.119,79.095,1.23984555]
[1770832839511,4.91685114,79.12,79.09,51.44]
[1770832839512,1.24141318,79.117,79.09,51.44]
[1770832839707,4.91685114,79.1,79.08,0.1]
[1770832839922,1.24141318,79.101,79.081,1.23984555]
[1770832840233,1.24141318,79.116,79.082,1.23984555]
[1770832841626,12.63982809,79.115,79.084,1.23984555]
[1770832842128,1.24141318,79.116,79.084,1.23984555]
[1770832842331,12.63853009,79.124,79.091,1.23984555]
[1770832842525,12.63407916,79.151,79.111,1.23984555]
[1770832842831,12.63407916,79.151,79.121,1.23984555]
[1770832843134,13.87549234,79.151,79.121,1.23984555]
[1770832843527,1.24141318,79.15,79.122,1.23984555]
[1770832844232,1.24141318,79.149,79.122,1.23984555]
[1770832845631,1.24141318,79.149,79.109,31.60173269]
[1770832845632,12.63216482,79.163,79.131,1.23984555]
[1770832846226,13.873578,79.163,79.131,1.23984555]
[1770832846923,13.873578,79.163,79.133,1.23984555]
[1770832847233,1.24141318,79.159,79.129,1.23984555]
[1770832847736,1.24141318,79.166,79.131,1.23984555]
[1770832849533,12.63184488,79.165,79.132,12.63711267]
[1770832849831,1.24141318,79.159,79.128,51.44]
[1770832850049,1.24141318,79.159,79.129,13.87743733]
[1770832850213,1.24141318,79.159,79.13,1.23984555]
[1770832851716,1.23120032,79.167,79.132,1.31502304]
[1770832852335,12.63168531,79.166,79.132,1.31502304]
[1770832852936,13.86288563,79.166,79.132,1.31502304]
[1770832853347,1.23120032,79.179,79.151,1.31502304]
[1770832853516,1.23120032,79.169,79.137,1.31502304]
[1770832853720,48.87685114,79.2,79.131,45.54547633]
[1770832853721,1.23120032,79.159,79.131,45.54547633]
[1770832854018,1.23120032,79.159,79.132,1.31502304]
[1770832854918,13.86274442,79.167,79.132,1.31502304]
[1770832855114,13.8608117,79.179,79.141,1.31502304]
[1770832855339,13.8608117,79.179,79.131,44.23045329]
[1770832855340,13.8608117,79.179,79.151,1.31502304]
[1770832855813,13.8608117,79.179,79.15,4.91685114]
[1770832855814,1.23120032,79.196,79.161,1.31502304]
[1770832856018,1.23120032,79.202,79.161,1.31502304]
[1770832856243,1.23120032,79.202,79.163,1.31502304]
[1770832856944,1.23120032,79.199,79.163,1.31502304]
[1770832857722,1.23120032,79.208,79.171,1.31502304]
[1770832857924,1.23120032,79.206,79.173,1.31502304]
[1770832859649,0.2,79.21,79.173,1.31502304]
[1770832859832,1.23120032,79.221,79.192,12.62753813]
[1770832860149,1.23120032,79.219,79.192,12.62753813]
[1770832861336,1.23120032,79.209,79.173,1.31502304]
[1770832861536,1.23120032,79.209,79.175,1.31502304]
[1770832861946,1.23120032,79.207,79.177,1.31502304]
[1770832862266,1.23120032,79.189,79.151,1.31502304]
[1770832862434,1.23120032,79.179,79.152,1.31502304]
[1770832862630,4.91685114,79.16,79.137,1.31502304]
[1770832862954,1.23120032,79.159,79.134,51.44]
[1770832863250,1.23120032,79.159,79.135,1.31502304]
[1770832863950,13.15901067,79.16,79.137,1.31502304]
[1770832864152,13.15901067,79.15,79.134,51.44]
[1770832864457,4.61729252,79.182,79.135,1.31502304]
[1770832864458,1.23120032,79.169,79.135,1.31502304]
[1770832864949,13.15901067,79.16,79.135,1.31502304]
[1770832865153,13.15901067,79.16,79.135,13.95165664]
[1770832865650,1.23120032,79.162,79.136,1.31502304]
[1770832866152,13.15901067,79.16,79.137,12.63631423]
[1770832866349,13.15901067,79.16,79.138,1.31502304]
[1770832866728,1.23120032,79.169,79.138,1.31502304]
[1770832866931,14.39021099,79.17,79.138,1.31502304]
[1770832867127,14.39021099,79.17,79.139,1.31502304]
[1770832868232,1.23120032,79.169,79.141,1.31502304]
[1770832868949,1.23120032,79.149,79.121,12.63877891]
[1770832869361,1.23120032,79.149,79.122,1.31502304]
[1770832870054,1.23120032,79.149,79.122,12.63870984]
[1770832870246,12.63439841,79.149,79.123,1.31502304]
[1770832871437,13.15901067,79.16,79.125,1.31502304]
[1770832871641,13.15901067,79.16,79.131,1.31502304]
[1770832871642,1.23120032,79.159,79.131,1.31502304]
[1770832871943,1.23120032,79.149,79.126,51.54]
[1770832873149,13.15901067,79.14,79.126,51.54]
[1770832873353,1.23120032,79.139,79.107,1.31502304]
[1770832873557,13.15901067,79.13,79.107,1.31502304]
[1770832874149,1.23120032,79.139,79.107,1.31502304]
[1770832874648,12.63615456,79.138,79.109,1.31502304]
[1770832876840,1.23120032,79.129,79.101,65.53700698]
[1770832877037,1.23120032,79.129,79.102,1.31502304]
[1770832877261,13.15901067,79.12,79.095,51.6]
[1770832877560,13.15901067,79.12,79.096,1.31502304]
[1770832877757,1.23120032,79.119,79.096,1.31502304]
[1770832878442,1.23120032,79.127,79.096,1.31502304]
[1770832878841,1.23120032,79.125,79.096,1.31502304]
[1770832880941,1.23120032,79.125,79.095,51.6]
[1770832880942,12.63839037,79.124,79.098,1.22568645]
[1770832881259,13.15901067,79.12,79.098,1.22568645]
[1770832882649,1.26156937,79.109,79.087,1.22568645]
[1770832882961,1.26156937,79.109,79.08,12.74528288]
[1770832882962,12.63918906,79.119,79.089,1.22568645]
[1770832883163,12.63851455,79.124,79.091,1.22568645]
[1770832883341,13.90008392,79.124,79.091,1.22568645]
[1770832883544,1.26156937,79.123,79.091,1.22568645]
[1770832884368,1.26156937,79.123,79.093,1.22568645]
[1770832884745,12.63870984,79.122,79.095,1.22568645]
[1770832884945,12.63870984,79.122,79.097,1.22568645]
[1770832886349,25.79484589,79.14,79.101,1.22568645]
[1770832887254,25.79484589,79.14,79.103,1.2519454]
[1770832887455,1.30490777,79.139,79.103,1.2519454]
[1770832887669,13.15901067,79.13,79.103,1.2519454]
[1770832887875,1.30490777,79.132,79.103,1.2519454]
[1770832889280,1.30490777,79.129,79.096,51.7]
[1770832889579,1.30490777,79.119,79.092,12.64350376]
[1770832890075,1.30490777,79.119,79.093,1.2519454]
[1770832891462,12.63934882,79.118,79.093,1.2519454]
[1770832891773,12.63934882,79.118,79.095,1.2519454]
[1770832893067,1.30490777,79.117,79.091,1.2519454]
[1770832894386,1.30490777,79.124,79.093,1.2519454]
[1770832894585,1.30490777,79.122,79.093,1.2519454]
[1770832894966,1.30490777,79.119,79.093,1.2519454]
[1770832896580,12.63918906,79.119,79.095,1.2519454]
[1770832898590,12.63790795,79.128,79.097,1.2519454]
[1770832898889,12.63790795,79.128,79.101,1.2519454]
[1770832899268,1.30490777,79.137,79.101,1.2519454]
[1770832899467,1.30490777,79.144,79.111,1.2519454]
[1770832899765,1.30490777,79.147,79.111,1.2519454]
[1770832900288,1.30490777,79.186,79.141,1.2519454]
[1770832900462,1.30490777,79.186,79.16,13.17307047]
[1770832900668,1.30490777,79.184,79.16,13.17307047]
[1770832900880,1.30490777,79.184,79.156,1.2519454]
[1770832901497,1.30490777,79.169,79.131,1.2519454]
[1770832901666,1.30490777,79.149,79.115,51.92]
[1770832901865,1.30490777,79.149,79.117,1.2519454]
[1770832902792,1.30490777,79.147,79.116,51.9]
[1770832903088,1.30490777,79.147,79.117,1.2519454]
[1770832904487,12.63487731,79.146,79.117,1.2519454]
[1770832904685,1.30490777,79.145,79.117,1.2519454]
[1770832904890,12.63428624,79.15,79.121,1.2519454]
[1770832905070,1.30490777,79.149,79.121,1.2519454]
[1770832906380,13.93930618,79.149,79.121,1.2519454]
[1770832906691,1.30490777,79.161,79.133,1.2519454]
[1770832907392,1.30490777,79.159,79.121,1.2519454]
[1770832907596,1.30490777,79.159,79.067,50.58980986]
[1770832907597,1.30490777,79.129,79.085,1.2519454]
[1770832907780,1.30490777,79.129,79.081,44.25841858]
[1770832907781,1.30490777,79.119,79.087,1.2519454]
[1770832907980,43.76,79.14,79.091,1.2519454]
[1770832907981,1.30490777,79.129,79.091,1.2519454]
[1770832908290,1.30490777,79.119,79.091,1.2519454]
[1770832909290,1.30490777,79.109,79.086,51.92]
[1770832912070,44.22486447,79.141,79.101,1.30140934]
[1770832912291,1.26429837,79.129,79.101,1.30140934]
[1770832913094,1.26429837,79.129,79.091,1.30140934]
[1770832914897,43.74,79.148,79.08,13.27307047]
[1770832914898,1.26429837,79.109,79.082,51.98]
[1770832915992,1.26429837,79.107,79.082,51.98]
[1770832916178,1.26429837,79.107,79.08,0.1]
[1770832916578,13.17307047,79.1,79.08,0.1]
[1770832916792,1.26429837,79.099,79.08,0.1]
[1770832917214,1.26429837,79.099,79.06,13.17307047]
[1770832917215,1.26429837,79.089,79.06,1.30140934]
[1770832917503,1.26429837,79.089,79.061,52.04]
[1770832917701,1.26429837,79.089,79.061,64.68846131]
[1770832918003,43.72,79.112,79.04,0.1]
[1770832918004,1.26429837,79.079,79.04,0.1]
[1770832918212,1.26429837,79.069,79.04,0.1]
[1770832918417,1.26429837,79.069,79.043,1.30140934]
[1770832918906,1.26429837,79.069,79.041,18.81520758]
[1770832919209,13.17307047,79.06,79.041,6.16360481]
[1770832919509,13.17307047,79.07,79.042,1.30140934]
[1770832920315,12.64542235,79.08,79.043,1.30140934]
[1770832920499,12.64398336,79.089,79.051,1.30140934]
[1770832921179,13.17307047,79.08,79.051,1.30140934]
[1770832921386,12.64238485,79.099,79.061,1.30140934]
[1770832921595,13.17307047,79.12,79.081,1.30140934]
[1770832922114,12.6385501,79.123,79.081,1.30140934]
[1770832922301,13.17307047,79.14,79.101,1.30140934]
[1770832922490,44.18,79.16,79.092,12.64350376]
[1770832922491,12.63557664,79.142,79.111,1.30140934]
[1770832922989,0.58495097,79.119,79.077,1.30140934]
[1770832923180,0.58709774,79.089,79.051,1.30140934]
[1770832923598,13.17307047,79.1,79.061,1.30140934]
[1770832924105,13.17307047,79.1,79.063,1.30140934]
[1770832924314,13.17307047,79.09,79.064,1.30140934]
[1770832924605,13.17307047,79.08,79.062,52.78]
[1770832924778,13.17307047,79.09,79.062,52.78]
[1770832924982,13.17307047,79.09,79.063,1.30140934]
[1770832925902,13.17307047,79.08,79.062,52.78]
[1770832926410,12.64503318,79.083,79.062,52.78]
[1770832926606,12.64424337,79.088,79.063,1.30140934]
[1770832926900,12.64424337,79.088,79.046,1.30140934]
[1770832926901,13.17307047,79.07,79.046,1.30140934]
[1770832927076,13.17307047,79.08,79.046,1.30140934]
[1770832927282,12.63807092,79.126,79.071,1.30140934]
[1770832927502,13.17307047,79.09,79.071,1.30140934]
[1770832927702,13.75698726,79.09,79.057,1.30140934]
[1770832928104,13.17307047,79.08,79.057,1.30140934]
[1770832928486,13.17307047,79.09,79.057,1.30140934]
[1770832928805,12.64398336,79.089,79.059,1.30140934]
[1770832929909,13.17307047,79.08,79.055,53.1]
[1770832930102,13.17307047,79.09,79.056,1.30140934]
[1770832930491,13.17307047,79.1,79.056,1.30140934]
[1770832930699,13.17307047,79.1,79.055,65.74936103]
[1770832930700,13.17307047,79.08,79.055,53.1]
[1770832930892,13.17307047,79.09,79.057,1.30140934]
[1770832931088,13.17307047,79.1,79.057,1.30140934]
[1770832932014,0.57881349,79.109,79.057,1.30140934]
[1770832932015,12.64398336,79.089,79.057,1.30140934]
[1770832932211,13.17307047,79.08,79.048,1.30140934]
[1770832932509,13.17307047,79.08,79.04,0.1]
[1770832932510,13.17307047,79.06,79.04,0.1]
[1770832932708,13.17307047,79.05,79.026,1.30140934]
[1770832932890,13.17307047,79.05,79.02,1.40140934]
[1770832933091,13.17307047,79.05,79.021,1.30140934]
[1770832933290,0.57550824,79.058,79.021,1.30140934]
[1770832933593,13.17307047,79.05,79.021,1.30140934]
[1770832933902,12.65198193,79.039,79.02,0.1]
[1770832934410,12.65198193,79.039,78.994,31.64784478]
[1770832934411,0.57227847,79.029,78.984,1.30140934]
[1770832934592,13.17307047,79.03,78.986,1.30140934]
[1770832934791,13.17307047,79.02,78.991,1.30140934]
[1770832934992,44.28193676,79.039,78.991,1.30140934]
[1770832934993,13.17307047,79.01,78.991,1.30140934]
[1770832935190,94.88986449,79.039,78.96,13.27307047]
[1770832935191,1.26429837,79.003,78.96,0.1]
[1770832935513,1.26429837,79.033,78.98,13.17307047]
[1770832935810,44.28193676,79.039,78.99,13.17307047]
[1770832936032,44.28193676,79.039,79.0,13.17307047]
[1770832936314,44.28193676,79.039,78.988,12.6601509]
[1770832936315,13.17307047,79.03,78.988,12.6601509]
[1770832936913,13.17307047,79.02,78.987,53.18]
[1770832937127,44.28193676,79.039,78.99,13.17307047]
[1770832937296,13.17307047,79.03,78.991,1.30140934]
[1770832937600,12.65198193,79.039,79.001,1.30140934]
[1770832937797,1.26429837,79.117,79.031,1.30140934]
[1770832938117,1.26429837,79.117,78.988,310.17369723]
[1770832938118,1.26429837,79.091,79.04,13.17307047]
[1770832938416,13.17307047,79.11,79.061,1.30140934]
[1770832938594,13.17307047,79.11,79.071,1.30140934]
[1770832938794,1.26429837,79.112,79.071,1.30140934]
[1770832939106,44.23828,79.117,79.071,1.30140934]
[1770832939107,13.17307047,79.1,79.071,1.30140934]
[1770832939310,13.17307047,79.09,79.067,53.22]
[1770832939823,13.17307047,79.09,79.061,1.30140934]
[1770832940025,13.17307047,79.08,79.053,12.6496477]
[1770832940311,12.64558226,79.079,79.051,1.30140934]
[1770832940888,12.64558226,79.079,79.052,1.26098691]
[1770832941910,1.21218279,79.101,79.062,1.26098691]
[1770832942112,12.64222503,79.1,79.071,1.26098691]
[1770832942812,12.64072095,79.11,79.081,1.26098691]
[1770832943595,1.21218279,79.109,79.073,53.2]
[1770832943912,1.21218279,79.109,79.074,1.26098691]
[1770832944410,12.64094655,79.108,79.074,1.26098691]
[1770832944720,12.63637251,79.137,79.101,1.26098691]
[1770832944918,13.8485553,79.137,79.101,1.26098691]
[1770832945712,13.17307047,79.13,79.101,1.26098691]
[1770832945898,1.21218279,79.129,79.093,53.2]
[1770832946100,12.63637251,79.137,79.101,1.26098691]
[1770832946621,12.63637251,79.137,79.103,1.26098691]
[1770832947832,12.63637251,79.137,79.104,1.24586006]
[1770832948497,12.63637251,79.137,79.106,1.24586006]
[1770832948902,12.63599489,79.139,79.106,1.24586006]
[1770832949216,12.63599489,79.139,79.11,13.17307047]
[1770832949611,1.27466764,79.138,79.1,13.17307047]
[1770832949803,1.27466764,79.138,79.101,65.8220652]
[1770832950003,1.27466764,79.138,79.102,53.18]
[1770832950309,1.27466764,79.129,79.102,53.18]
[1770832950608,12.63775149,79.128,79.102,53.18]
[1770832950817,1.27466764,79.119,79.086,65.84434092]
[1770832951052,1.27466764,79.119,79.086,12.64434092]
[1770832951209,1.27466764,79.119,79.082,12.64508803]
[1770832951523,1.27466764,79.119,79.082,13.73900747]
[1770832951818,14.44773811,79.11,79.082,1.09391944]
[1770832952017,14.44773811,79.11,79.081,12.64526245]
[1770832952402,1.27466764,79.136,79.1,13.17307047]
[1770832952607,1.27466764,79.148,79.113,1.09765417]
[1770832952800,12.63439841,79.149,79.106,53.22]
[1770832952801,1.27466764,79.139,79.106,53.22]
[1770832953002,1.27466764,79.139,79.107,1.09765417]
[1770832953201,1.27466764,79.139,79.107,12.64110634]
[1770832953619,1.27466764,79.139,79.11,13.16633907]
[1770832954227,1.27466764,79.139,79.107,12.64110634]
[1770832954521,12.63615456,79.138,79.099,1.10496346]
[1770832954703,1.27466764,79.137,79.1,12.64222503]
[1770832954903,1.27466764,79.129,79.1,12.64222503]
[1770832955222,1.27466764,79.129,79.098,53.2]
[1770832955626,1.27466764,79.119,79.098,53.2]
[1770832955835,1.27466764,79.119,79.08,13.16633907]
[1770832956051,1.27466764,79.099,79.06,14.27490437]
[1770832956325,1.27466764,79.099,79.062,1.1085653]
[1770832956520,1.27466764,79.108,79.07,13.16633907]
[1770832956728,13.91577398,79.107,79.072,13.75882373]
[1770832956935,1.27466764,79.106,79.072,13.75882373]
[1770832957821,1.27466764,79.137,79.101,1.11562108]
[1770832958009,1.27466764,79.158,79.12,13.16633907]
[1770832958530,1.27466764,79.158,79.111,53.2]
[1770832958712,1.27466764,79.149,79.111,65.84035286]
[1770832958913,1.27466764,79.149,79.12,13.16633907]
[1770832959115,1.27466764,79.149,79.111,53.2]
[1770832959436,1.27466764,79.149,79.112,65.84030741]
[1770832959633,1.27466764,79.149,79.12,13.16633907]
[1770832959937,12.63312151,79.157,79.13,13.16633907]
[1770832960427,13.90778915,79.157,79.13,13.16633907]
[1770832960635,1.27466764,79.154,79.12,13.16633907]
[1770832960934,1.27466764,79.154,79.121,12.63886957]
[1770832961315,1.27466764,79.154,79.13,13.16633907]
[1770832962228,1.27466764,79.149,79.101,1.13255256]
[1770832962411,1.27466764,79.149,79.11,13.16633907]
[1770832962617,12.63344071,79.155,79.13,13.16633907]
[1770832963313,12.63344071,79.155,79.123,1.135839]
[1770832963517,1.27466764,79.154,79.123,1.135839]
[1770832963741,1.27466764,79.154,79.122,12.63870984]
[1770832964641,1.27466764,79.158,79.13,25.80361498]
[1770832964818,1.27466764,79.188,79.15,13.16633907]
[1770832965017,1.27466764,79.186,79.15,13.16633907]
[1770832965828,1.27466764,79.186,79.141,1.13906335]
[1770832966515,44.20029045,79.185,79.15,13.16633907]
[1770832966718,1.27466764,79.184,79.15,13.16633907]
[1770832967124,1.27466764,79.184,79.142,12.6355159]
[1770832967335,1.27466764,79.179,79.14,13.16633907]
[1770832967515,1.27466764,79.179,79.15,13.16633907]
[1770832967831,1.27466764,79.184,79.151,1.14854804]
[1770832968038,1.27466764,79.184,79.15,13.16633907]
[1770832968636,6.60110121,79.202,79.17,13.16633907]
[1770832968841,13.90108969,79.199,79.17,13.16633907]
[1770832969341,1.27466764,79.198,79.162,1.15165478]
[1770832969555,12.62642205,79.199,79.159,53.08]
[1770832969556,12.62642205,79.199,79.171,1.15472275]
[1770832969725,12.62569548,79.204,79.18,13.16633907]
[1770832970323,12.62505035,79.208,79.18,13.16633907]
[1770832970519,12.62421467,79.213,79.18,13.16633907]
[1770832970724,12.62421467,79.213,79.19,13.16633907]
[1770832971334,12.62421467,79.213,79.184,12.62872072]
[1770832971335,13.9302567,79.213,79.184,12.62872072]
[1770832971552,1.30604203,79.199,79.162,53.06]
[1770832972054,1.30604203,79.199,79.17,13.16633907]
[1770832972636,12.62658147,79.198,79.171,12.63088757]
[1770832973229,13.9326235,79.198,79.17,13.16633907]
[1770832973431,1.30604203,79.197,79.161,65.67233224]
[1770832973632,1.30604203,79.197,79.161,66.84167941]
[1770832974049,1.30604203,79.197,79.17,13.16633907]
[1770832974956,1.30604203,79.195,79.161,1.16934717]
[1770832975748,13.16633907,79.19,79.155,53.04]
[1770832975943,1.30604203,79.189,79.155,53.04]
[1770832977049,1.30604203,79.187,79.155,53.04]
[1770832978942,1.30604203,79.187,79.156,12.63328111]
[1770832979129,12.62849493,79.186,79.16,25.79885994]
[1770832979329,12.62849493,79.186,79.156,13.81640923]
[1770832979646,13.93453696,79.186,79.156,1.18316783]
[1770832980245,1.30604203,79.185,79.155,53.04]
[1770832980848,1.30604203,79.185,79.16,13.16633907]
[1770832981156,1.30604203,79.212,79.171,1.19109022]
[1770832981335,1.30604203,79.199,79.161,12.63248316]
[1770832981541,1.30604203,79.199,79.163,1.19109022]
[1770832982149,1.30604203,79.199,79.17,13.16633907]
[1770832983243,1.30604203,79.197,79.157,12.63299257]
[1770832983544,1.30604203,79.169,79.107,12.64110634]
[1770832983858,1.30604203,79.159,79.121,1.19621901]
[1770832984042,1.30604203,79.159,79.13,13.16633907]
[1770832984248,1.30604203,79.189,79.151,1.1987498]
[1770832984773,44.19303516,79.198,79.161,1.1987498]
[1770832984934,13.9326235,79.198,79.17,13.16633907]
[1770832985129,1.30604203,79.207,79.171,1.1987498]
[1770832985335,12.62591821,79.203,79.18,13.16633907]
[1770832985560,12.62591821,79.203,79.168,53.04]
[1770832985561,1.30604203,79.202,79.17,13.16633907]
[1770832986143,1.30604203,79.202,79.168,53.04]
[1770832986339,1.30604203,79.199,79.168,53.04]
[1770832987231,1.30604203,79.189,79.142,1.20616652]
[1770832987436,1.30604203,79.189,79.16,13.16633907]
[1770832987632,1.30604203,79.189,79.141,12.63567556]
[1770832987633,1.30604203,79.219,79.181,1.20616652]
[1770832987853,1.30604203,79.219,79.162,4.61729252]
[1770832987854,12.62297846,79.221,79.2,13.16633907]
[1770832988151,6.16360481,79.239,79.162,4.61729252]
[1770832988152,12.62085887,79.234,79.21,13.16633907]
[1770832988353,1.30604203,79.229,79.19,13.16633907]
[1770832989350,1.30604203,79.227,79.191,12.62769759]
[1770832990746,44.1763013,79.228,79.145,1.01377845]
[1770832990747,1.30604203,79.209,79.145,1.01377845]
[1770832991062,94.66350279,79.228,79.15,13.16633907]
[1770832991063,13.16633907,79.19,79.15,13.16633907]
[1770832991253,1.30604203,79.187,79.151,12.63407916]
[1770832991443,1.30604203,79.187,79.16,13.16633907]
[1770832991643,1.30604203,79.218,79.18,13.16633907]
[1770832991943,1.30604203,79.209,79.17,13.16633907]
[1770832992335,1.30604203,79.199,79.153,1.01872671]
[1770832992540,1.30604203,79.199,79.154,53.04]
[1770832992741,1.30604203,79.199,79.16,13.16633907]
[1770832992941,1.30604203,79.199,79.161,1.01872671]
[1770832993156,1.30604203,79.199,79.151,44.21927707]
[1770832993157,1.30604203,79.208,79.17,14.18506578]
[1770832993338,1.30604203,79.199,79.16,66.20633907]
[1770832994143,1.30604203,79.199,79.16,67.22749776]
[1770832994354,12.62658147,79.198,79.163,12.63210593]
[1770832994559,13.9326235,79.198,79.163,12.63210593]
[1770832995153,1.30604203,79.189,79.16,53.04]
[1770832996159,1.30604203,79.189,79.151,12.63395702]
[1770832996358,1.30604203,79.169,79.13,13.16633907]
[1770832996547,1.30604203,79.159,79.126,53.04]
[1770832997048,1.30604203,79.149,79.126,53.04]
[1770832997373,1.30604203,79.158,79.13,13.16633907]
[1770832997663,1.30604203,79.158,79.12,12.63892787]
[1770832997664,1.30604203,79.173,79.141,1.03062582]
[1770832998160,1.30604203,79.169,79.129,1.03062582]
[1770832998357,1.30604203,79.167,79.124,12.63839037]
[1770832998943,1.30604203,79.167,79.13,13.16633907]
[1770833000163,0.80604203,79.167,79.13,13.16633907]
[1770833000552,12.63168531,79.166,79.131,12.63727237]
[1770833000865,13.16633907,79.16,79.131,12.63727237]
[1770833001258,12.63168531,79.166,79.131,12.63727237]
[1770833002161,12.63168531,79.166,79.132,1.37544144]
[1770833002371,12.6299304,79.177,79.141,1.37544144]
[1770833002549,12.6299304,79.177,79.151,1.37544144]
[1770833003578,12.62849493,79.186,79.16,13.16633907]
[1770833003745,12.62849493,79.186,79.151,1.37544144]
[1770833004057,0.8182402,79.186,79.152,14.00936098]
[1770833004257,0.8182402,79.186,79.153,1.37544144]
[1770833004652,0.8182402,79.186,79.16,13.16633907]
[1770833004855,13.16633907,79.21,79.17,13.16633907]
[1770833005070,13.16633907,79.2,79.159,53.06]
[1770833005370,13.16633907,79.18,79.133,12.63695297]
[1770833005574,13.16633907,79.18,79.141,1.37544144]
[1770833005757,18.16,79.181,79.141,1.37544144]
[1770833005958,18.16,79.181,79.15,13.16633907]
[1770833005959,12.62945188,79.18,79.15,13.16633907]
[1770833006171,12.62945188,79.18,79.149,1.37544144]
[1770833006172,1.3182402,79.179,79.149,1.37544144]